bitfinex-derivatives/quotes_ETHF0:USTF0_20241004
["timestamp","ask_amount","ask_price","bid_price","bid_amount"]
[1728085821637,0.28966,2416.5,2416.3,1.13637]
[1728085821936,0.28966,2416.5,2416.4,0.4002]
[1728085822438,0.28966,2416.5,2416.4,4.5386]
[1728085822630,0.28965,2416.6,2416.4,4.82826]
[1728085822834,0.28965,2416.6,2416.4,0.68986]
[1728085823633,4.8004,2416.7,2416.4,0.4002]
[1728085823938,4.8004,2416.7,2416.5,0.28965]
[1728085823939,5.09004,2416.7,2416.5,0.28965]
[1728085824240,5.09004,2416.7,2416.4,0.68986]
[1728085824938,0.28965,2416.6,2416.4,0.68986]
[1728085825341,0.28965,2416.6,2416.4,4.82826]
[1728085828637,4.68744,2416.7,2416.4,4.82826]
[1728085828834,4.68744,2416.7,2416.4,0.68986]
[1728085829235,0.28964,2416.6,2416.4,0.68986]
[1728085829635,4.68744,2416.7,2416.4,4.82826]
[1728085829835,4.68744,2416.7,2416.4,0.68986]
[1728085830838,4.68744,2416.7,2416.5,0.28965]
[1728085831137,0.28964,2416.6,2416.4,0.68986]
[1728085831345,4.68744,2416.7,2416.4,0.68986]
[1728085831544,4.68744,2416.7,2416.5,0.28965]
[1728085832042,4.3978,2416.7,2416.5,0.28965]
[1728085832340,3.2078,2416.7,2416.5,0.28965]
[1728085833143,3.2078,2416.7,2416.4,0.4002]
[1728085833341,3.2078,2416.7,2416.6,0.28964]
[1728085833538,3.2078,2416.7,2416.5,0.28965]
[1728085834540,3.2078,2416.7,2416.6,1.19]
[1728085834735,3.2078,2416.7,2416.6,1.47964]
[1728085834933,3.2078,2416.7,2416.6,5.61724]
[1728085839442,4.274,2417.0,2416.8,0.28961]
[1728085839649,4.274,2417.0,2416.9,0.3949]
[1728085839650,3.6004,2417.0,2416.9,0.3949]
[1728085839940,3.89,2417.0,2416.9,0.3949]
[1728085840347,3.6004,2417.0,2416.9,0.3949]
[1728085841044,3.89,2417.0,2416.9,0.3949]
[1728085841543,3.6004,2417.0,2416.9,0.3949]
[1728085841844,3.89,2417.0,2416.9,0.3949]
[1728085842046,3.89,2417.0,2416.9,1.87451]
[1728085842047,3.2078,2417.0,2416.9,1.87451]
[1728085842238,4.107,2417.3,2417.2,0.28957]
[1728085842435,1.25094,2417.5,2417.2,1.19]
[1728085842436,0.4054,2417.5,2417.2,1.19]
[1728085842639,0.4054,2417.5,2417.3,0.8007]
[1728085842640,0.4192,2417.4,2417.3,0.8007]
[1728085843246,0.4192,2417.4,2417.3,1.48546]
[1728085844751,0.4192,2417.4,2417.3,1.1959]
[1728085845341,0.70875,2417.4,2417.3,0.8007]
[1728085845653,0.70875,2417.4,2417.3,0.3866]
[1728085846139,0.70875,2417.4,2417.0,0.889]
[1728085846140,1.6092,2417.4,2417.0,0.889]
[1728085846342,1.19,2417.2,2416.9,0.3933]
[1728085846542,0.70098,2417.1,2416.8,5.19871]
[1728085846746,1.12068,2417.1,2416.8,5.19871]
[1728085847554,0.8311,2417.1,2416.8,5.19871]
[1728085847849,0.8311,2417.1,2416.9,0.28961]
[1728085848649,0.8311,2417.1,2416.8,0.68312]
[1728085848650,1.12069,2417.1,2416.8,0.68312]
[1728085850148,0.8311,2417.1,2416.8,0.3935]
[1728085850353,0.8311,2417.1,2416.9,0.2896]
[1728085850542,0.8311,2417.1,2416.9,1.4796]
[1728085856759,0.8311,2417.1,2416.9,1.8836]
[1728085857959,0.8311,2417.1,2416.9,1.594]
[1728085857960,0.4197,2417.1,2416.9,1.594]
[1728085858462,0.4197,2417.1,2416.9,1.8836]
[1728085864264,0.4197,2417.1,2417.0,0.2896]
[1728085864977,0.384,2417.5,2417.0,5.7225]
[1728085865163,0.384,2417.5,2417.3,1.19]
[1728085865365,0.3916,2417.6,2417.4,0.389]
[1728085865766,0.28954,2417.5,2417.4,0.389]
[1728085867666,0.3916,2417.6,2417.4,0.389]
[1728085867966,0.28954,2417.5,2417.4,0.389]
[1728085871575,0.28955,2417.4,2417.3,0.4005]
[1728085873467,0.404,2417.5,2417.3,0.4005]
[1728085873676,0.28954,2417.5,2417.3,0.69006]
[1728085873873,0.28954,2417.5,2417.4,0.4198]
[1728085875671,0.28955,2417.4,2417.3,0.4005]
[1728085876280,0.28954,2417.5,2417.3,0.4005]
[1728085877974,0.28954,2417.5,2417.3,0.69006]
[1728085878368,0.28954,2417.5,2417.3,0.4005]
[1728085879366,0.28954,2417.5,2417.3,0.69006]
[1728085882277,0.68113,2417.6,2417.3,0.69005]
[1728085882466,0.28954,2417.5,2417.3,0.69005]
[1728085884366,0.28954,2417.5,2417.4,0.53399583]
[1728085884877,0.28954,2417.5,2417.3,0.69005]
[1728085885172,0.28954,2417.5,2417.4,0.94389562]
[1728085886282,0.68113,2417.6,2417.4,1.23344562]
[1728085886482,0.28954,2417.5,2417.4,0.4099]
[1728085886683,0.28954,2417.5,2417.4,0.94407854]
[1728085888584,0.3916,2417.6,2417.4,1.7989138]
[1728085888884,0.68112,2417.6,2417.5,0.53417854]
[1728085889681,0.3916,2417.6,2417.4,0.4099]
[1728085889871,0.28954,2417.5,2417.4,0.4099]
[1728085890071,0.28954,2417.5,2417.4,0.94414993]
[1728085890276,0.28954,2417.5,2417.4,0.53424993]
[1728085890277,5.61634,2417.5,2417.4,0.53424993]
[1728085890477,5.3268,2417.5,2417.2,0.4262]
[1728085890682,0.28956,2417.3,2417.2,0.4262]
[1728085890885,0.28956,2417.3,2417.2,1.81530112]
[1728085891186,0.69066,2417.3,2417.2,0.4262]
[1728085891381,0.69066,2417.3,2417.2,1.81530398]
[1728085891582,0.4011,2417.3,2417.2,1.81530398]
[1728085891779,0.69066,2417.3,2417.2,1.81530398]
[1728085896283,0.4011,2417.3,2417.2,1.81530398]
[1728085896482,0.69066,2417.3,2417.2,1.81530398]
[1728085897390,0.69066,2417.3,2417.2,2.38941227]
[1728085897588,0.69066,2417.3,2417.2,1.81530398]
[1728085897991,0.69066,2417.3,2417.2,1.00030916]
[1728085898185,0.69066,2417.3,2417.2,2.38961659]
[1728085898382,0.69066,2417.3,2417.2,0.96057439]
[1728085898690,0.4011,2417.3,2417.2,2.38970718]
[1728085898892,0.69066,2417.3,2417.2,2.38970718]
[1728085904798,3.2078,2417.4,2417.2,2.68003514]
[1728085904989,3.2078,2417.4,2417.3,1.38991011]
[1728085905298,3.2078,2417.4,2417.3,1.79141011]
[1728085905498,0.28955,2417.4,2417.3,1.79141011]
[1728085906496,3.606,2417.7,2417.3,2.3657897]
[1728085906802,3.606,2417.7,2417.4,0.96008081]
[1728085906803,0.28954,2417.5,2417.4,0.96008081]
[1728085908291,0.28954,2417.5,2417.4,0.96016794]
[1728085910201,0.28954,2417.5,2417.4,1.81579791]
[1728085910999,0.28954,2417.5,2417.4,2.3903489]
[1728085911201,0.28954,2417.5,2417.4,0.4255]
[1728085911502,0.28954,2417.5,2417.4,1.81585983]
[1728085912094,0.28954,2417.5,2417.4,2.39040712]
[1728085912998,0.28954,2417.5,2417.4,1.81585983]
[1728085913194,0.28954,2417.5,2417.4,2.39040438]
[1728085913594,0.28954,2417.5,2417.4,1.81585983]
[1728085914400,0.28954,2417.5,2417.4,2.3904036]
[1728085914798,0.28954,2417.5,2417.4,0.4255]
[1728085915105,0.28954,2417.5,2417.4,1.81586116]
[1728085915404,0.28954,2417.5,2417.4,2.39041138]
[1728085915898,0.28954,2417.5,2417.4,1.81586116]
[1728085916608,0.28954,2417.5,2417.4,2.3904118]
[1728085916901,0.28954,2417.5,2417.4,1.81586116]
[1728085917104,0.28954,2417.5,2417.4,2.39040665]
[1728085917497,0.28954,2417.5,2417.4,1.81586116]
[1728085918107,0.28954,2417.5,2417.4,0.4255]
[1728085918301,0.28954,2417.5,2417.4,1.81586742]
[1728085919109,0.28954,2417.5,2417.4,2.39041192]
[1728085919805,0.28954,2417.5,2417.4,3.00586742]
[1728085920010,0.28954,2417.5,2417.4,3.58037961]
[1728085920210,3.606,2417.7,2417.4,3.00586742]
[1728085920513,0.28952,2417.6,2417.5,0.5347567]
[1728085920712,3.606,2417.7,2417.5,1.39031536]
[1728085920909,3.89551,2417.7,2417.6,0.3921]
[1728085921216,3.89551,2417.7,2417.6,0.92683087]
[1728085923813,3.89551,2417.7,2417.6,0.3921]
[1728085924020,3.89551,2417.7,2417.6,0.92678303]
[1728085927221,3.89551,2417.7,2417.6,0.3921]
[1728085927417,3.89551,2417.7,2417.6,0.92673663]
[1728085927628,3.89551,2417.7,2417.6,0.3921]
[1728085927920,3.89551,2417.7,2417.6,0.92671628]
[1728085929023,3.89551,2417.7,2417.6,1.35101628]
[1728085930618,3.89551,2417.7,2417.6,0.8164]
[1728085930817,3.89551,2417.7,2417.6,1.35095002]
[1728085934019,3.89551,2417.7,2417.6,0.8164]
[1728085934228,3.89551,2417.7,2417.6,1.35074808]
[1728085934718,3.89551,2417.7,2417.6,1.35069051]
[1728085938028,3.89551,2417.7,2417.6,0.8164]
[1728085938331,0.68771,2417.7,2417.6,1.3498657]
[1728085944427,0.68771,2417.7,2417.6,1.35029272]
[1728085947729,0.68771,2417.7,2417.6,1.35029371]
[1728085948231,0.68771,2417.7,2417.6,1.35028552]
[1728085951222,0.68771,2417.7,2417.6,1.35033302]
[1728085951427,0.68771,2417.7,2417.6,0.53393302]
[1728085951734,0.28956,2417.3,2417.2,0.413]
[1728085951935,0.28956,2417.3,2417.2,2.37548722]
[1728085952129,0.28956,2417.3,2417.2,1.80164737]
[1728085952523,0.28956,2417.3,2417.2,2.99164737]
[1728085953129,0.28956,2417.3,2417.2,3.56391755]
[1728085953332,0.28956,2417.3,2417.2,2.99164737]
[1728085954625,0.28956,2417.3,2417.2,1.603]
[1728085954827,0.28956,2417.3,2417.2,2.99140928]
[1728085956244,0.28956,2417.3,2417.2,2.13700357]
[1728085956639,0.28956,2417.3,2417.2,2.99142846]
[1728085957245,1.09846,2417.4,2417.2,2.13700357]
[1728085957436,1.09846,2417.4,2417.3,0.53400357]
[1728085961240,0.8089,2417.4,2417.3,0.53400357]
[1728085961432,0.3957,2417.4,2417.3,0.53400357]
[1728085961631,0.3957,2417.4,2417.2,1.89257]
[1728085961935,0.3957,2417.4,2417.3,0.53396309]
[1728085963041,3.2078,2417.6,2417.4,0.28954]
[1728085963243,0.68142,2417.7,2417.5,2.53792082]
[1728085963436,0.3919,2417.7,2417.6,0.4114]
[1728085964744,0.68141,2417.7,2417.6,0.4114]
[1728085966244,0.3919,2417.7,2417.6,0.4114]
[1728085966841,0.68141,2417.7,2417.6,0.4114]
[1728085972055,0.3919,2417.7,2417.6,0.4114]
[1728085972348,0.68141,2417.7,2417.6,0.4114]
[1728085973341,0.3919,2417.7,2417.6,0.94515202]
[1728085973746,0.68141,2417.7,2417.6,0.94515202]
[1728085973945,0.3919,2417.7,2417.6,0.94515202]
[1728085975551,0.3919,2417.7,2417.6,0.94512753]
[1728085975743,0.68141,2417.7,2417.6,0.94512753]
[1728085976148,0.3919,2417.7,2417.6,0.94512753]
[1728085976943,0.3919,2417.7,2417.6,0.4114]
[1728085977351,0.3919,2417.7,2417.6,0.94509046]
[1728085977943,0.3919,2417.7,2417.6,1.23461046]
[1728085979142,0.3919,2417.7,2417.6,1.23458428]
[1728085979349,0.3919,2417.7,2417.6,0.70092]
[1728085979550,0.3919,2417.7,2417.6,0.4114]
[1728085979762,0.8804,2418.0,2417.6,0.94505621]
[1728085980049,3.49727,2418.1,2417.8,1.4795]
[1728085980254,3.88857,2418.1,2417.9,1.2049]
[1728085981543,0.28948,2418.0,2417.9,1.2049]
[1728085981741,3.5991,2418.1,2418.0,0.28948]
[1728085981742,3.2078,2418.1,2418.0,0.28948]
[1728085981955,3.2078,2418.1,2418.0,2.01287004]
[1728085982146,3.2078,2418.1,2418.0,1.72339004]
[1728085982351,3.49726,2418.1,2418.0,0.53339004]
[1728085982543,3.2078,2418.1,2417.9,1.2049]
[1728085982750,0.69468,2418.0,2417.9,1.2049]
[1728085982949,0.69468,2418.0,2417.9,1.73808273]
[1728085983254,0.4052,2418.0,2417.9,2.92808273]
[1728085984750,3.49727,2418.1,2417.9,2.92808273]
[1728085985052,3.49727,2418.1,2417.9,2.3949]
[1728085987850,0.71536,2418.2,2417.9,2.68438]
[1728085988854,0.71536,2418.2,2417.9,2.3949]
[1728085988855,0.4259,2418.2,2417.9,2.3949]
[1728085989055,0.28945,2418.3,2418.0,1.47948]
[1728085989558,0.28945,2418.3,2418.0,1.47947]
[1728085990761,0.3895,2418.2,2418.0,1.47947]
[1728085991967,7.46553,2418.6,2418.0,1.47947]
[1728085991968,3.78990642,2419.4,2418.6,3.2078]
[1728085992258,4.186,2420.8,2418.1,25.45659365]
[1728085992259,0.658,2420.4,2419.7,0.28927]
[1728085992464,0.2892,2420.3,2419.7,0.20675602]
[1728085992764,0.3688,2420.4,2419.4,3.70112548]
[1728085992951,3.2078,2420.2,2419.7,1.19]
[1728085993152,3.2078,2419.8,2419.5,2.97172071]
[1728085993359,0.407,2419.7,2419.6,1.67966823]
[1728085993559,0.407,2419.7,2419.4,2.58]
[1728085993760,0.407,2419.7,2419.5,1.67978529]
[1728085993962,0.407,2419.7,2419.6,1.67978529]
[1728085994460,4.5398,2419.7,2419.6,1.67980569]
[1728085994867,4.5398,2419.7,2419.6,1.67979589]
[1728085995263,0.407,2419.7,2419.6,1.67979589]
[1728085995569,10.82907,2419.7,2419.6,1.67979589]
[1728085995770,5.23227,2419.7,2419.6,1.67979589]
[1728085996868,11.23227,2419.7,2419.6,1.67979589]
[1728085997071,0.28929,2419.6,2419.1,2.58]
[1728085997371,0.8102,2419.7,2419.1,2.58]
[1728085997671,0.28929,2419.6,2419.1,2.86934]
[1728086001062,0.28928,2419.6,2419.1,2.86934]
[1728086001876,0.28928,2419.6,2419.2,0.64613365]
[1728086002279,0.28928,2419.6,2419.1,2.86934]
[1728086002470,0.28928,2419.6,2419.2,0.64613009]
[1728086002668,0.28928,2419.6,2419.1,2.86934]
[1728086002977,0.2893,2419.5,2419.2,0.64612989]
[1728086003176,0.2893,2419.5,2419.1,2.86934]
[1728086003375,0.2893,2419.5,2419.2,0.64612981]
[1728086003681,0.2893,2419.5,2419.1,2.86934]
[1728086003872,0.2893,2419.5,2419.2,0.64612982]
[1728086004170,0.2893,2419.5,2419.1,2.86934]
[1728086004376,0.2893,2419.5,2419.2,0.64613]
[1728086004576,0.2893,2419.5,2419.1,2.86934]
[1728086004869,0.2893,2419.5,2419.2,0.6461299]
[1728086005076,0.2893,2419.5,2419.1,2.86934]
[1728086005277,0.28929,2419.6,2419.3,2.58]
[1728086005871,4.018,2419.7,2419.3,2.58]
[1728086006067,0.2893,2419.5,2419.3,2.58]
[1728086006675,0.28929,2419.6,2419.3,2.58]
[1728086007180,0.2893,2419.5,2419.3,2.58]
[1728086010483,0.2893,2419.5,2419.4,0.64611259]
[1728086010776,0.2893,2419.5,2419.3,2.58]
[1728086011279,0.2893,2419.5,2419.4,0.64611391]
[1728086011477,4.1336,2419.4,2419.0,0.405]
[1728086011678,0.28934,2419.2,2419.1,0.64618409]
[1728086012082,4.42294,2419.2,2419.1,0.64618409]
[1728086012284,4.42294,2419.2,2419.1,0.6462079]
[1728086012979,4.42294,2419.2,2419.0,0.405]
[1728086013180,0.28934,2419.2,2419.0,0.405]
[1728086019080,0.70354,2419.2,2419.0,0.405]
[1728086020384,0.4142,2419.2,2419.0,0.405]
[1728086020592,0.28934,2419.1,2419.0,0.405]
[1728086020790,0.28934,2419.1,2419.0,1.05122013]
[1728086021689,0.4142,2419.2,2419.0,1.05122013]
[1728086021897,0.28934,2419.1,2419.0,0.405]
[1728086022190,0.4142,2419.2,2419.0,1.05121592]
[1728086022191,0.70354,2419.2,2419.0,1.05121592]
[1728086022392,3.91133,2419.2,2419.1,0.64621592]
[1728086022695,3.91133,2419.2,2418.4,0.1175]
[1728086022696,0.72341,2419.0,2418.4,0.40692]
[1728086022892,0.28939,2418.7,2418.5,1.03409836]
[1728086023092,0.70247,2418.9,2418.6,0.2894]
[1728086023495,0.70247,2418.9,2418.7,0.4042]
[1728086024395,3.91027,2418.9,2418.7,0.4042]
[1728086026205,3.6209,2418.9,2418.7,0.4042]
[1728086026404,0.28938,2418.8,2418.7,0.4042]
[1728086026792,3.6209,2418.9,2418.7,0.4042]
[1728086026996,3.91028,2418.9,2418.7,0.4042]
[1728086027594,0.28938,2418.8,2418.7,0.4042]
[1728086028798,3.6209,2418.9,2418.7,0.4042]
[1728086028799,3.91028,2418.9,2418.7,0.4042]
[1728086029605,0.28938,2418.8,2418.7,0.4042]
[1728086029800,3.91027,2418.9,2418.7,0.4042]
[1728086031890,3.6209,2418.9,2418.7,0.4042]
[1728086032100,3.91028,2418.9,2418.7,0.4042]
[1728086032501,3.6209,2418.9,2418.7,0.4042]
[1728086032706,0.28938,2418.8,2418.7,0.4042]
[1728086034604,0.28938,2418.8,2418.7,1.03463156]
[1728086035302,0.28938,2418.8,2418.7,1.03481339]
[1728086035904,3.91028,2418.9,2418.7,1.03481339]
[1728086036093,3.91028,2418.9,2418.8,0.63061339]
[1728086036503,8.04468,2418.9,2418.8,0.63061339]
[1728086038299,8.04468,2418.9,2418.8,1.6405933]
[1728086039195,3.91028,2418.9,2418.8,1.6405933]
[1728086040305,8.04468,2418.9,2418.8,0.63061339]
[1728086040607,9.23468,2418.9,2418.8,0.63061339]
[1728086041000,0.28944,2418.3,2418.2,0.6423696]
[1728086041212,0.28944,2418.3,2418.2,2.27351633]
[1728086041401,0.28944,2418.3,2418.2,1.0104517]
[1728086041612,0.28945,2418.2,2418.1,0.4079]
[1728086041806,0.28946,2418.1,2418.0,0.69487]
[1728086042007,1.19,2418.2,2418.0,1.01051291]
[1728086042207,1.19,2418.2,2417.8,0.28949]
[1728086042404,0.28948,2418.0,2417.9,1.00266699]
[1728086042607,0.28947,2418.1,2417.9,1.29214699]
[1728086042799,0.28947,2418.1,2417.9,0.28948]
[1728086044007,0.28947,2418.1,2417.8,0.2895]
[1728086044215,0.28947,2418.1,2417.9,0.28948]
[1728086046708,0.28947,2418.1,2417.7,0.4176]
[1728086046913,0.28947,2418.1,2417.9,0.28948]
[1728086047112,3.49727,2418.1,2417.9,0.28948]
[1728086047307,3.49727,2418.1,2417.7,0.4176]
[1728086047507,3.49727,2418.1,2417.9,0.28948]
[1728086048509,0.28948,2418.0,2417.9,0.28948]
[1728086049215,3.49727,2418.1,2417.9,0.28948]
[1728086050013,3.2078,2418.1,2417.9,0.28948]
[1728086050213,3.2078,2418.1,2417.7,0.4176]
[1728086050214,0.28948,2418.0,2417.7,0.4176]
[1728086050510,0.28948,2418.0,2417.7,0.7071]
[1728086050511,0.28949,2417.9,2417.7,0.7071]
[1728086050711,0.7849,2418.0,2417.7,0.7071]
[1728086050909,0.2895,2417.8,2417.7,0.4176]
[1728086055521,0.2895,2417.8,2417.7,0.70711]
[1728086055717,0.2895,2417.9,2417.7,0.4176]
[1728086055917,0.4071,2418.2,2417.7,2.9976]
[1728086056118,0.4071,2418.2,2418.1,0.28946]
[1728086056319,0.3987,2418.3,2417.9,2.58]
[1728086056621,0.3987,2418.3,2418.0,1.13817]
[1728086056622,0.28946,2418.2,2418.0,1.13817]
[1728086057818,0.28946,2418.2,2418.1,0.3869]
[1728086058015,1.4287,2418.3,2418.1,0.67636]
[1728086058016,0.68815,2418.3,2418.1,0.67636]
[1728086058220,0.28945,2418.2,2418.1,0.3869]
[1728086068022,1.47945,2418.2,2418.1,0.3869]
[1728086081433,1.47945,2418.2,2418.1,0.98667635]
[1728086081835,1.47945,2418.2,2418.1,0.3869]
[1728086082036,1.47945,2418.2,2418.1,0.98666166]
[1728086082247,1.47945,2418.2,2418.1,0.3869]
[1728086082441,1.47945,2418.2,2418.1,0.98684887]
[1728086083338,0.28945,2418.2,2418.1,0.98684887]
[1728086084236,0.28945,2418.2,2418.1,1.9476808]
[1728086085640,0.28945,2418.2,2418.1,3.14965525]
[1728086086141,3.49725,2418.2,2418.1,3.14965525]
[1728086088537,0.28945,2418.2,2418.1,3.14965525]
[1728086088738,3.49725,2418.2,2418.1,3.14965525]
[1728086089245,3.49725,2418.2,2418.1,1.34854935]
[1728086089544,3.49725,2418.2,2418.1,3.15164188]
[1728086090239,0.28945,2418.2,2418.1,3.15164188]
[1728086090544,3.49725,2418.2,2418.1,3.15164188]
[1728086092142,0.28945,2418.2,2418.1,3.15164188]
[1728086092738,0.28945,2418.2,2418.1,3.15161548]
[1728086093343,0.28945,2418.2,2418.1,3.15160745]
[1728086093547,3.49725,2418.2,2418.1,3.15160745]
[1728086099643,0.28945,2418.2,2418.1,3.15160745]
[1728086099843,3.49725,2418.2,2418.1,3.15160745]
[1728086100839,0.28945,2418.2,2418.1,3.15160745]
[1728086101046,3.49725,2418.2,2418.1,3.15160745]
[1728086102956,3.49725,2418.2,2418.1,0.3869]
[1728086103458,3.49725,2418.2,2418.1,3.15353478]
[1728086106651,0.28945,2418.2,2418.1,3.15358251]
[1728086106854,3.49725,2418.2,2418.1,3.15358251]
[1728086110155,3.49725,2418.2,2418.1,1.34922435]
[1728086110360,3.49725,2418.2,2418.1,3.15358016]
[1728086113848,3.49725,2418.2,2418.1,0.3869]
[1728086114049,3.49725,2418.2,2418.1,3.15359353]
[1728086114254,3.49725,2418.2,2418.1,0.3869]
[1728086114452,3.49725,2418.2,2417.8,0.86833529]
[1728086114453,9.93144,2418.2,2417.8,0.86833529]
[1728086114660,0.28952,2417.6,2417.5,0.90558428]
[1728086114852,4.44732,2417.6,2417.5,4.28e-06]
[1728086115157,0.28956,2417.3,2417.2,0.4076]
[1728086115361,4.68736,2417.3,2417.2,0.4076]
[1728086120465,3.49736,2417.3,2417.2,0.4076]
[1728086122158,3.2078,2417.3,2417.2,0.4076]
[1728086122556,3.2078,2417.3,2417.2,0.69717]
[1728086123559,3.2078,2417.3,2417.2,4.5444]
[1728086124257,3.2078,2417.3,2417.2,4.83397]
[1728086124455,3.2078,2417.3,2417.2,4.5444]
[1728086124664,0.28958,2417.1,2417.0,0.8426]
[1728086127668,3.49738,2417.1,2417.0,0.8426]
[1728086133467,3.49738,2417.1,2417.0,0.4152]
[1728086151080,0.28958,2417.1,2417.0,0.4152]
[1728086155586,1.47958,2417.1,2417.0,0.4152]
[1728086164091,0.28964,2416.6,2416.5,1.62146179]
[1728086164395,0.28964,2416.6,2416.0,0.111]
[1728086164396,0.28969,2416.2,2416.1,0.3886]
[1728086164594,3.49749,2416.2,2416.1,0.90416519]
[1728086164890,4.68749,2416.2,2416.1,0.3886]
[1728086165080,4.68749,2416.2,2415.6,0.4201]
[1728086165081,0.28975,2415.7,2415.6,0.4201]
[1728086165286,1.47975,2415.7,2415.6,0.4201]
[1728086165695,1.47975,2415.7,2415.6,4.5601]
[1728086167588,0.28976,2415.6,2415.5,0.8057]
[1728086167794,4.68756,2415.6,2415.5,0.8057]
[1728086169199,3.2078,2415.6,2415.5,4.9457]
[1728086169391,3.2078,2415.6,2415.5,5.23548]
[1728086170490,2.5659,2415.6,2415.5,11.23548]
[1728086170686,3.49753,2415.9,2415.6,0.28975]
[1728086170883,3.49753,2415.9,2415.7,0.4022]
[1728086171493,0.28974,2415.8,2415.7,0.4022]
[1728086173299,4.68753,2415.9,2415.7,4.5414]
[1728086173494,4.68753,2415.9,2415.7,0.4022]
[1728086176191,4.3978,2415.9,2415.7,0.69195]
[1728086176394,1.19,2415.9,2415.7,0.69195]
[1728086177394,3.2078,2416.2,2415.7,4.5414]
[1728086177596,3.2078,2415.9,2415.7,0.69194]
[1728086177796,3.2078,2415.9,2415.8,0.28974]
[1728086178098,3.2078,2415.9,2415.8,4.42894]
[1728086178298,3.2078,2415.9,2415.8,4.1392]
[1728086178690,1.47972,2416.0,2415.8,4.1392]
[1728086178887,1.47972,2416.0,2415.9,0.8345]
[1728086179401,1.47972,2416.0,2415.9,4.9737]
[1728086180293,1.19,2416.0,2415.9,4.9737]
[1728086181794,1.19,2416.0,2415.9,4.1392]
[1728086182000,1.19,2416.0,2415.7,0.4022]
[1728086182001,0.28976,2415.6,2415.5,0.3969]
[1728086182196,3.49756,2415.6,2415.5,0.3969]
[1728086182391,3.49756,2415.6,2415.2,0.4206]
[1728086182392,0.28979,2415.4,2415.2,0.4206]
[1728086182596,1.19,2415.3,2415.2,0.8175]
[1728086183300,1.19,2415.3,2415.2,1.10731]
[1728086186898,1.47978,2415.5,2415.2,0.8175]
[1728086187201,1.47978,2415.5,2415.3,0.2898]
[1728086190096,1.47978,2415.5,2415.2,0.8175]
[1728086190403,1.47978,2415.5,2415.4,0.28979]
[1728086191296,1.19,2415.6,2415.2,0.8175]
[1728086191496,1.47976,2415.6,2415.5,0.28977]
[1728086193298,0.28976,2415.7,2415.3,0.4238]
[1728086193498,1.47976,2415.7,2415.3,0.4238]
[1728086194302,1.47976,2415.7,2415.5,0.28977]
[1728086194999,1.47976,2415.7,2415.6,0.4178]
[1728086202810,1.47976,2415.7,2415.6,0.70756]
[1728086206209,1.47976,2415.7,2415.6,0.4178]
[1728086208316,1.47976,2415.7,2415.6,0.70756]
[1728086209614,1.47976,2415.7,2415.6,0.4178]
[1728086219717,1.19,2415.7,2415.3,2.04526179]
[1728086220024,1.47977,2415.6,2415.4,1.2268929]
[1728086220218,0.28978,2415.5,2415.4,0.4214]
[1728086220521,0.70108,2415.5,2415.4,0.93714055]
[1728086220725,1.11648,2415.5,2415.4,0.93714055]
[1728086221028,1.11648,2415.5,2415.4,1.22693055]
[1728086221212,1.11648,2415.5,2415.4,1.22694767]
[1728086221414,1.11648,2415.5,2415.4,0.4214]
[1728086221719,1.11648,2415.5,2415.4,0.93716382]
[1728086222523,1.11648,2415.5,2415.4,1.22695382]
[1728086224721,0.8267,2415.5,2415.4,1.22695382]
[1728086225219,0.4113,2415.5,2415.4,1.22695382]
[1728086225410,0.4113,2415.5,2415.4,0.71119]
[1728086225610,0.4113,2415.5,2415.4,1.22706684]
[1728086228220,0.4113,2415.5,2415.4,1.22725318]
[1728086231317,1.19,2415.6,2415.4,0.93746318]
[1728086231526,1.5892,2415.7,2415.5,0.51606318]
[1728086231722,1.5892,2415.7,2415.6,0.67516]
[1728086232328,1.5892,2415.7,2415.6,1.19122941]
[1728086232522,1.5892,2415.7,2415.6,0.90146941]
[1728086232826,1.87895,2415.7,2415.6,0.3854]
[1728086233226,1.87895,2415.7,2415.6,0.90147939]
[1728086234225,1.87895,2415.7,2415.6,0.3854]
[1728086234625,1.87895,2415.7,2415.6,0.9015203]
[1728086235231,1.87895,2415.7,2415.6,0.90151789]
[1728086235626,1.87895,2415.7,2415.6,0.3854]
[1728086235827,1.87895,2415.7,2415.6,0.9015405]
[1728086236529,1.87895,2415.7,2415.6,0.3854]
[1728086237327,1.87895,2415.7,2415.4,2.21068719]
[1728086237626,1.19,2415.5,2415.4,2.21068719]
[1728086237827,1.19,2415.5,2415.4,2.7268454]
[1728086238928,1.19,2415.5,2415.4,2.21068719]
[1728086240630,1.47978,2415.5,2415.4,1.50800719]
[1728086240835,1.47978,2415.5,2415.4,0.4214]
[1728086246738,1.47978,2415.5,2415.4,0.93746076]
[1728086248539,1.19,2415.5,2415.4,1.22725076]
[1728086250040,1.19,2415.5,2415.4,0.93742036]
[1728086250238,1.47978,2415.5,2415.4,0.93742036]
[1728086250433,1.47978,2415.5,2415.4,0.4214]
[1728086250633,1.47978,2415.5,2415.4,0.9374287]
[1728086252554,1.19,2415.5,2415.4,1.2272187]
[1728086253653,1.19,2415.5,2415.4,1.22720703]
[1728086254255,0.28977,2415.6,2415.4,1.22719703]
[1728086254458,1.47977,2415.6,2415.4,0.71118]
[1728086254847,1.19,2415.6,2415.5,0.28978]
[1728086255252,1.47976,2415.6,2415.5,0.4213]
[1728086256359,1.19,2415.6,2415.5,0.71108]
[1728086256661,1.47976,2415.6,2415.5,0.4213]
[1728086257063,1.19,2415.6,2415.5,0.71108]
[1728086257554,1.47976,2415.6,2415.5,0.4213]
[1728086258556,1.47976,2415.6,2415.5,0.93733828]
[1728086258756,1.19,2415.6,2415.5,0.93733828]
[1728086258959,1.19,2415.6,2415.5,0.71108]